fUST/lending_fUST_20250114
["ID","MTS","AMOUNT","RATE_DAILY","PERIOD"]
[348803440,1736789447467,-500.0,0.00020505,3]
[348803442,1736789447476,-500.0,0.00020505,3]
[348803443,1736789447486,-500.0,0.00020505,3]
[348803446,1736789447497,-500.0,0.00020505,3]
[348803448,1736789447506,-500.0,0.00020505,3]
[348803449,1736789447516,-500.0,0.00020505,3]
[348803451,1736789447526,-500.0,0.00020505,3]
[348803453,1736789447536,-500.0,0.00020505,3]
[348803455,1736789447545,-410.97268361,0.00020505,3]
[348803457,1736789447555,-500.0,0.00020505,3]
[348803460,1736789447565,-500.0,0.00020505,3]
[348803462,1736789447575,-500.0,0.00020505,3]
[348803464,1736789447585,-500.0,0.00020505,3]
[348803466,1736789447594,-428.50661941,0.00020505,3]
[348803468,1736789447604,-500.0,0.00020505,3]
[348803469,1736789447613,-500.0,0.00020505,3]
[348803470,1736789447623,-500.0,0.00020506,3]
[348803471,1736789447632,-1945.6,0.00020506,3]
[348803472,1736789447642,-500.0,0.00020506,3]
[348803473,1736789447651,-569.76,0.00020506,3]
[348803474,1736789447663,-500.0,0.00020506,3]
[348803475,1736789447672,-1221.43,0.00020506,3]
[348803476,1736789447681,-500.0,0.00020506,3]
[348803477,1736789447691,-500.0,0.00020506,3]
[348803478,1736789447701,-500.0,0.00020506,3]
[348803479,1736789447710,-500.0,0.00020506,3]
[348803480,1736789447720,-504.33567399,0.00020506,3]
[348803481,1736789447729,-500.0,0.00020506,3]
[348803482,1736789447739,-500.0,0.00020506,3]
[348803483,1736789447748,-353.05,0.00020506,3]
[348803484,1736789447758,-500.0,0.00020506,3]
[348803486,1736789447767,-500.0,0.00020506,3]
[348803488,1736789447776,-500.0,0.00020506,3]
[348803490,1736789447786,-500.0,0.00020506,3]
[348803492,1736789447795,-500.0,0.00020506,3]
[348803494,1736789447804,-500.0,0.00020506,3]
[348803496,1736789447813,-500.0,0.00020506,3]
[348803498,1736789447822,-3069.63,0.00020506,3]
[348803500,1736789447832,-500.0,0.00020506,3]
[348803502,1736789447841,-500.0,0.00020506,3]
[348803504,1736789447850,-500.0,0.00020506,3]
[348803506,1736789447859,-500.0,0.00020506,3]
[348803507,1736789447868,-500.0,0.00020506,3]
[348803509,1736789447877,-500.0,0.00020506,3]
[348803511,1736789447886,-500.0,0.00020507,3]
[348803513,1736789447896,-500.0,0.00020507,3]
[348803515,1736789447906,-3069.63,0.00020507,3]
[348803517,1736789447915,-3069.63,0.00020507,3]
[348803519,1736789447925,-500.0,0.00020507,3]
[348803521,1736789447934,-4740.34,0.00020508,3]
[348803522,1736789447943,-500.0,0.00020508,3]
[348803524,1736789447953,-500.0,0.00020508,3]
[348803526,1736789447962,-3331.7,0.00020509,3]
[348803528,1736789447971,-500.0,0.00020509,3]
[348803530,1736789447980,-500.0,0.00020545,3]
[348803532,1736789447990,-3069.63,0.00020545,3]
[348803534,1736789447999,-174.342135,0.00020577,2]
[348803536,1736789448008,-774.33349525,0.00020612,2]
[348803538,1736789448017,-878.97,0.00020776,3]
[348803540,1736789448026,-500.0,0.00020776,3]
[348803542,1736789448035,-500.0,0.00020776,3]
[348803544,1736789448044,-500.0,0.00020777,3]
[348803546,1736789448054,-506.17,0.00020777,3]
[348803548,1736789448063,-500.0,0.00020777,3]
[348803551,1736789448073,-500.0,0.00020777,3]
[348803553,1736789448082,-500.0,0.00020777,3]
[348803555,1736789448091,-219.98,0.00020777,3]
[348803557,1736789448100,-500.0,0.00020777,3]
[348803559,1736789448109,-639.75,0.00020777,3]
[348803561,1736789448118,-500.0,0.00020777,3]
[348803563,1736789448127,-500.0,0.00020777,3]
[348803565,1736789448137,-500.0,0.00020777,3]
[348803567,1736789448146,-879.84,0.00020777,3]
[348803569,1736789448157,-500.0,0.00020777,3]
[348803571,1736789448166,-637.2,0.00020777,3]
[348803573,1736789448176,-13394.9,0.00020777,2]
[348803575,1736789448185,-569.86,0.00020777,3]
[348803576,1736789448194,-500.0,0.00020777,3]
[348803578,1736789448203,-1568.59,0.00020777,3]
[348803581,1736789448213,-500.0,0.00020777,3]
[348803582,1736789448223,-500.0,0.00020777,3]
[348803584,1736789448237,-500.0,0.00020777,3]
[348803586,1736789448247,-500.0,0.00020777,3]
[348803589,1736789448257,-500.0,0.00020777,3]
[348803591,1736789448266,-500.0,0.00020777,3]
[348803593,1736789448277,-165.08362005,0.00020777,3]
[348803595,1736789448286,-500.0,0.00020777,3]
[348803596,1736789448296,-500.0,0.00020777,3]
[348803599,1736789448307,-910.52,0.00020777,3]
[348803601,1736789448316,-500.0,0.00020777,3]
[348803603,1736789448326,-500.0,0.00020777,3]
[348803605,1736789448336,-514.64,0.00020777,3]
[348803607,1736789448346,-815.7,0.00020777,3]
[348803609,1736789448355,-500.0,0.00020777,3]
[348803611,1736789448365,-500.0,0.00020777,3]
[348803613,1736789448374,-500.0,0.00020777,3]
[348803614,1736789448383,-499.98,0.00020777,3]
[348803617,1736789448394,-500.0,0.00020777,3]
[348803619,1736789448404,-547.39396296,0.00020777,3]
[348803621,1736789448415,-500.0,0.00020777,3]
[348803622,1736789448425,-500.0,0.00020778,3]
[348803624,1736789448434,-500.0,0.00020778,3]
[348803626,1736789448444,-500.0,0.00020778,3]
[348803628,1736789448454,-500.0,0.00020778,3]
[348803630,1736789448463,-500.0,0.00020778,3]
[348803632,1736789448472,-500.0,0.00020778,3]
[348803635,1736789448482,-500.0,0.00020778,3]
[348803637,1736789448492,-223.76910194,0.00020778,3]
[348803639,1736789448502,-500.0,0.00020778,3]
[348803641,1736789448511,-500.0,0.00020778,3]
[348803643,1736789448520,-500.0,0.00020778,3]
[348803645,1736789448530,-500.0,0.00020778,3]
[348803647,1736789448540,-500.0,0.00020778,3]
[348803649,1736789448550,-500.0,0.00020778,2]
[348803651,1736789448559,-500.0,0.00020778,3]
[348803653,1736789448568,-10426.58,0.00020778,3]
[348803655,1736789448578,-500.0,0.00020778,3]
[348803657,1736789448587,-500.0,0.00020778,3]
[348803659,1736789448597,-500.0,0.00020778,3]
[348803661,1736789448607,-500.0,0.00020778,3]
[348803663,1736789448616,-500.0,0.00020778,3]
[348803665,1736789448625,-500.0,0.00020778,3]
[348803667,1736789448634,-500.0,0.00020778,3]
[348803669,1736789448643,-500.0,0.00020778,3]
[348803671,1736789448653,-500.0,0.00020778,3]
[348803673,1736789448664,-500.0,0.00020778,3]
[348803675,1736789448674,-500.0,0.00020778,3]
[348803677,1736789448683,-500.0,0.00020778,3]
[348803679,1736789448692,-500.0,0.00020778,3]
[348803681,1736789448702,-500.0,0.00020779,3]
[348803683,1736789448711,-500.0,0.00020779,3]
[348803684,1736789448720,-500.0,0.00020779,3]
[348803686,1736789448729,-507.39483569,0.00020779,3]
[348803688,1736789448739,-500.0,0.00020779,3]
[348803690,1736789448748,-500.0,0.00020779,3]
[348803692,1736789448758,-500.0,0.00020779,3]
[348803695,1736789448767,-500.0,0.00020779,3]
[348803697,1736789448776,-500.0,0.00020779,3]
[348803699,1736789448786,-500.0,0.00020779,3]
[348803701,1736789448795,-500.0,0.00020779,3]
[348803703,1736789448805,-500.0,0.00020779,3]
[348803705,1736789448814,-500.0,0.00020779,3]
[348803707,1736789448824,-250.05561166,0.00020779,3]
[348803709,1736789448833,-500.0,0.00020779,3]
[348803711,1736789448842,-500.0,0.00020779,3]
[348803713,1736789448852,-500.0,0.00020779,3]
[348803715,1736789448862,-500.0,0.00020779,3]
[348803717,1736789448871,-500.0,0.00020779,3]
[348803719,1736789448880,-500.0,0.00020779,3]
[348803721,1736789448892,-500.0,0.00020779,3]
[348803723,1736789448902,-501.40193362,0.0002078,3]
[348803725,1736789448914,-1945.6,0.0002078,3]
[348803727,1736789448925,-1221.43,0.0002078,3]
[348803729,1736789448935,-500.0,0.0002078,3]
[348803731,1736789448944,-500.0,0.0002078,3]
[348803733,1736789448953,-500.0,0.0002078,3]
[348803735,1736789448963,-500.0,0.0002078,3]
[348803737,1736789448973,-500.0,0.0002078,3]
[348803739,1736789448983,-500.0,0.0002078,3]
[348803741,1736789448992,-500.0,0.0002078,3]
[348803743,1736789449002,-500.0,0.0002078,3]
[348803745,1736789449012,-500.0,0.0002078,3]
[348803747,1736789449022,-500.0,0.00020781,3]
[348803749,1736789449031,-500.0,0.00020781,3]
[348803751,1736789449040,-3069.63,0.00020781,3]
[348803753,1736789449050,-3069.63,0.00020781,3]
[348803755,1736789449060,-500.0,0.00020781,3]
[348803757,1736789449069,-413.46,0.00020782,3]
[348803759,1736789449079,-4740.34,0.00020782,3]
[348803761,1736789449089,-500.0,0.00020782,3]
[348803763,1736789449098,-500.0,0.00020782,3]
[348803765,1736789449107,-3331.7,0.00020783,3]
[348803767,1736789449117,-500.0,0.00020783,3]
[348803780,1736789449234,-4149.9,0.000208,2]
[348803782,1736789449245,-1650.8,0.000208,2]
[348803784,1736789449255,-10520.1,0.000208,2]
[348803786,1736789449264,-10000.0,0.00021,5]
[348803788,1736789449274,-8696.6834393,0.00021,2]
[348803790,1736789449285,-500.0,0.00021008,3]
[348803792,1736789449294,-3069.63,0.00021008,3]
[348803794,1736789449304,-878.97,0.0002105,3]
[348803796,1736789449314,-500.0,0.0002105,3]
[348803798,1736789449324,-500.0,0.0002105,3]
[348803800,1736789449334,-500.0,0.00021051,3]
[348803802,1736789449344,-500.0,0.00021051,3]
[348803804,1736789449354,-500.0,0.00021051,3]
[348803806,1736789449363,-500.0,0.00021051,3]
[348803808,1736789449372,-500.0,0.00021051,3]
[348803810,1736789449382,-500.0,0.00021051,3]
[348803813,1736789449392,-500.0,0.00021051,3]
[348803815,1736789449401,-879.84,0.00021051,3]
[348803817,1736789449415,-500.0,0.00021051,3]
[348803819,1736789449424,-637.2,0.00021051,3]
[348803821,1736789449433,-13394.9,0.00021051,2]
[348803823,1736789449443,-569.86,0.00021051,3]
[348803825,1736789449453,-500.0,0.00021051,3]
[348803827,1736789449462,-1568.59,0.00021051,3]
[348803829,1736789449472,-500.0,0.00021051,3]
[348803831,1736789449482,-500.0,0.00021051,3]
[348803833,1736789449492,-500.0,0.00021051,3]
[348803835,1736789449501,-910.52,0.00021051,3]
[348803837,1736789449510,-303.41,0.00021051,3]
[348803839,1736789449521,-500.0,0.00021051,3]
[348803841,1736789449531,-815.7,0.00021051,3]
[348803843,1736789449541,-500.0,0.00021051,3]
[348803845,1736789449550,-500.0,0.00021051,3]
[348803847,1736789449560,-500.0,0.00021051,3]
[348803849,1736789449569,-500.0,0.00021051,3]
[348803851,1736789449579,-500.0,0.00021051,3]
[348803853,1736789449589,-500.0,0.00021052,3]
[348803855,1736789449598,-500.0,0.00021052,3]
[348803857,1736789449608,-500.0,0.00021052,3]
[348803859,1736789449619,-500.0,0.00021052,3]
[348803861,1736789449628,-500.0,0.00021052,3]
[348803863,1736789449638,-500.0,0.00021052,3]
[348803865,1736789449647,-500.0,0.00021052,3]
[348803867,1736789449657,-500.0,0.00021052,3]
[348803869,1736789449667,-500.0,0.00021052,3]
[348803871,1736789449676,-500.0,0.00021052,3]
[348803873,1736789449685,-500.0,0.00021052,2]
[348803875,1736789449694,-500.0,0.00021052,3]
[348803877,1736789449704,-10426.58,0.00021052,3]
[348803879,1736789449714,-500.0,0.00021052,3]
[348803881,1736789449723,-500.0,0.00021052,3]
[348803883,1736789449733,-500.0,0.00021052,3]
[348803885,1736789449743,-500.0,0.00021052,3]
[348803887,1736789449752,-504.77458857,0.00021052,3]
[348803889,1736789449761,-500.0,0.00021052,3]
[348803891,1736789449771,-500.0,0.00021052,3]
[348803893,1736789449780,-500.0,0.00021052,3]
[348803895,1736789449789,-500.0,0.00021052,3]
[348803897,1736789449799,-500.0,0.00021052,3]
[348803899,1736789449808,-500.0,0.00021052,3]
[348803901,1736789449817,-500.0,0.00021052,3]
[348803903,1736789449827,-500.0,0.00021053,3]
[348803905,1736789449836,-500.0,0.00021053,3]
[348803907,1736789449846,-500.0,0.00021053,3]
[348803909,1736789449856,-500.0,0.00021053,3]
[348803911,1736789449865,-500.0,0.00021053,3]
[348803913,1736789449875,-500.0,0.00021053,3]
[348803915,1736789449884,-500.0,0.00021053,3]
[348803917,1736789449895,-500.0,0.00021053,3]
[348803919,1736789449909,-283.28530825,0.00021053,3]
[348803921,1736789449918,-500.0,0.00021053,3]
[348803923,1736789449927,-500.0,0.00021053,3]
[348803925,1736789449936,-260.69,0.00021053,3]
[348803927,1736789449945,-500.0,0.00021053,3]
[348803929,1736789449955,-500.0,0.00021053,3]
[348803931,1736789449964,-1945.6,0.00021054,3]
[348803933,1736789449973,-1221.43,0.00021054,3]
[348803935,1736789449983,-500.0,0.00021054,3]
[348803937,1736789449993,-500.0,0.00021054,3]
[348803939,1736789450002,-500.0,0.00021054,3]
[348803941,1736789450012,-500.0,0.00021054,3]
[348803943,1736789450022,-500.0,0.00021054,3]
[348803945,1736789450031,-500.0,0.00021054,3]
[348803947,1736789450041,-3069.63,0.00021054,3]
[348803949,1736789450050,-500.0,0.00021054,3]
[348803951,1736789450060,-576.84109718,0.00021054,3]
[348803953,1736789450069,-500.0,0.00021054,3]
[348803954,1736789450079,-500.0,0.00021054,3]
[348803956,1736789450089,-500.0,0.00021055,3]
[348803958,1736789450098,-3069.63,0.00021055,3]
[348803960,1736789450108,-505.78388046,0.00021055,3]
[348803963,1736789450117,-4740.34,0.00021056,3]
[348803964,1736789450127,-500.0,0.00021056,3]
[348803966,1736789450136,-500.0,0.00021056,3]
[348803968,1736789450146,-3331.7,0.00021057,3]
[348803970,1736789450159,-500.0,0.00021057,3]
[348803972,1736789450168,-774.33349525,0.00021095,2]
[348803974,1736789450177,-878.97,0.00021324,3]
[348803977,1736789450187,-500.0,0.00021324,3]
[348803978,1736789450197,-500.0,0.00021324,3]
[348803980,1736789450207,-500.0,0.00021325,3]
[348803982,1736789450216,-500.0,0.00021325,3]
[348803984,1736789450229,-500.0,0.00021325,3]
[348803986,1736789450239,-500.0,0.00021325,3]
[348803988,1736789450249,-469.23,0.00021325,3]
[348803990,1736789450258,-220.96,0.00021325,3]
[348803992,1736789450268,-879.84,0.00021325,3]
[348803994,1736789450277,-500.0,0.00021325,3]
[348803996,1736789450287,-637.2,0.00021325,3]
[348803998,1736789450297,-13394.9,0.00021325,2]
[348804000,1736789450308,-569.86,0.00021325,3]
[348804002,1736789450318,-500.0,0.00021325,3]
[348804004,1736789450327,-1568.59,0.00021325,3]
[348804006,1736789450337,-500.0,0.00021325,3]
[348804008,1736789450347,-500.0,0.00021325,3]
[348804010,1736789450356,-500.0,0.00021325,3]
[348804011,1736789450366,-910.52,0.00021325,3]
[348804012,1736789450376,-221.13,0.00021325,3]
[348804013,1736789450385,-815.7,0.00021325,3]
[348804014,1736789450396,-500.0,0.00021325,3]
[348804015,1736789450407,-500.0,0.00021325,3]
[348804016,1736789450417,-500.0,0.00021325,3]
[348804017,1736789450426,-500.0,0.00021325,3]
[348804018,1736789450435,-500.0,0.00021326,3]
[348804019,1736789450445,-505.00517027,0.00021326,3]
[348804020,1736789450455,-500.0,0.00021326,3]
[348804021,1736789450464,-500.0,0.00021326,3]
[348804022,1736789450474,-500.0,0.00021326,3]
[348804023,1736789450484,-500.0,0.00021326,3]
[348804024,1736789450493,-500.0,0.00021326,3]
[348804025,1736789450502,-333.7,0.00021326,3]
[348804026,1736789450512,-500.0,0.00021326,3]
[348804028,1736789450521,-500.0,0.00021326,2]
[348804030,1736789450532,-500.0,0.00021326,3]
[348804032,1736789450542,-10426.58,0.00021326,3]
[348804034,1736789450551,-500.0,0.00021326,3]
[348804035,1736789450561,-500.0,0.00021326,3]
[348804037,1736789450571,-500.0,0.00021326,3]
[348804039,1736789450580,-500.0,0.00021326,3]
[348804042,1736789450590,-500.0,0.00021326,3]
[348804044,1736789450600,-500.0,0.00021326,3]
[348804046,1736789450609,-500.0,0.00021326,3]
[348804048,1736789450619,-500.0,0.00021326,3]
[348804049,1736789450629,-500.0,0.00021326,3]
[348804052,1736789450639,-500.0,0.00021327,3]
[348804053,1736789450648,-500.0,0.00021327,3]
[348804055,1736789450659,-524.25888756,0.00021327,3]
[348804057,1736789450668,-569.48,0.00021327,3]
[348804059,1736789450678,-500.0,0.00021327,3]
[348804061,1736789450687,-500.0,0.00021327,3]
[348804063,1736789450697,-500.0,0.00021327,3]
[348804065,1736789450707,-500.0,0.00021327,3]
[348804068,1736789450716,-1945.6,0.00021328,3]
[348804070,1736789450726,-1221.43,0.00021328,3]
[348804071,1736789450735,-500.0,0.00021328,3]
[348804073,1736789450744,-500.0,0.00021328,3]
[348804076,1736789450754,-500.0,0.00021328,3]
[348804078,1736789450763,-500.0,0.00021328,3]
[348804080,1736789450773,-3069.63,0.00021328,3]
[348804082,1736789450782,-500.0,0.0002133,3]
[348804084,1736789450792,-3069.63,0.0002133,3]
[348804086,1736789450801,-4740.34,0.0002133,3]
[348804088,1736789450811,-500.0,0.0002133,3]
[348804090,1736789450821,-500.0,0.0002133,3]
[348804092,1736789450831,-3331.7,0.00021331,3]
[348804094,1736789450840,-500.0,0.00021331,3]
[348804096,1736789450849,-174.342135,0.00021346,2]
[348804098,1736789450858,-57038.55840651,0.000215,2]
[348804100,1736789450867,-774.33349525,0.00021578,2]
[348804101,1736789450877,-878.97,0.00021598,3]
[348804104,1736789450887,-500.0,0.00021598,3]
[348804105,1736789450897,-500.0,0.00021598,3]
[348804108,1736789450909,-500.0,0.00021599,3]
[348804110,1736789450918,-500.0,0.00021599,3]
[348804112,1736789450927,-500.0,0.00021599,3]
[348804114,1736789450936,-226.85,0.00021599,3]
[348804115,1736789450946,-879.84,0.00021599,3]
[348804118,1736789450955,-500.0,0.00021599,3]
[348804120,1736789450964,-637.2,0.00021599,3]
[348804121,1736789450973,-13394.9,0.00021599,2]
[348804123,1736789450982,-569.86,0.00021599,3]
[348804126,1736789450992,-500.0,0.00021599,3]
[348804127,1736789451001,-1568.59,0.00021599,3]
[348804129,1736789451010,-500.0,0.00021599,3]
[348804132,1736789451020,-500.0,0.00021599,3]
[348804133,1736789451030,-500.0,0.00021599,3]
[348804135,1736789451039,-910.52,0.00021599,3]
[348804137,1736789451048,-815.7,0.00021599,3]
[348804139,1736789451057,-500.0,0.00021599,3]
[348804141,1736789451068,-500.0,0.00021599,3]
[348804143,1736789451077,-500.0,0.00021599,3]
[348804145,1736789451086,-500.0,0.00021599,3]
[348804147,1736789451096,-500.0,0.000216,3]
[348804149,1736789451105,-500.0,0.000216,3]
[348804151,1736789451115,-500.0,0.000216,3]
[348804154,1736789451124,-500.0,0.000216,3]
[348804156,1736789451134,-500.0,0.000216,3]
[348804157,1736789451144,-500.0,0.000216,3]
[348804159,1736789451153,-500.0,0.000216,3]
[348804161,1736789451165,-500.0,0.000216,2]
[348804164,1736789451174,-500.0,0.000216,3]
[348804166,1736789451184,-10426.58,0.000216,3]
[348804168,1736789451192,-500.0,0.000216,3]
[348804169,1736789451201,-500.0,0.000216,3]
[348804171,1736789451211,-500.0,0.000216,3]
[348804174,1736789451220,-500.0,0.000216,3]
[348804176,1736789451234,-500.0,0.000216,3]
[348804177,1736789451243,-202.92,0.000216,3]
[348804179,1736789451252,-603.35422825,0.000216,3]
[348804182,1736789451262,-500.0,0.00021601,3]
[348804183,1736789451272,-337.92,0.00021601,3]
[348804186,1736789451282,-163.28,0.00021601,3]
[348804187,1736789451292,-500.0,0.00021601,3]
[348804190,1736789451303,-178.05,0.00021601,3]
[348804191,1736789451313,-1945.6,0.00021602,3]
[348804193,1736789451323,-1221.43,0.00021602,3]
[348804195,1736789451333,-500.0,0.00021602,3]
[348804197,1736789451342,-500.0,0.00021602,3]
[348804200,1736789451352,-500.0,0.00021602,3]
[348804201,1736789451361,-500.0,0.00021603,3]
[348804204,1736789451370,-3069.63,0.00021603,3]
[348804206,1736789451379,-4740.34,0.00021604,3]
[348804207,1736789451388,-500.0,0.00021604,3]
[348804210,1736789451398,-500.0,0.00021604,3]
[348804212,1736789451409,-3331.7,0.00021605,3]
[348804214,1736789451419,-500.0,0.00021605,3]
[348804216,1736789451428,-500.0,0.00021822,3]
[348804217,1736789451438,-3069.63,0.00021822,3]
[348804230,1736789451551,-878.97,0.00021872,3]
[348804233,1736789451561,-500.0,0.00021872,3]
[348804235,1736789451571,-500.0,0.00021872,3]
[348804237,1736789451580,-500.0,0.00021873,3]
[348804239,1736789451589,-500.0,0.00021873,3]
[348804241,1736789451599,-500.0,0.00021873,3]
[348804243,1736789451608,-879.84,0.00021873,3]
[348804245,1736789451618,-500.0,0.00021873,3]
[348804247,1736789451627,-637.2,0.00021873,3]
[348804249,1736789451636,-13394.9,0.00021873,2]
[348804251,1736789451645,-569.86,0.00021873,3]
[348804253,1736789451654,-500.0,0.00021873,3]
[348804254,1736789451664,-1568.59,0.00021873,3]
[348804256,1736789451674,-500.0,0.00021873,3]
[348804258,1736789451683,-500.0,0.00021873,3]
[348804261,1736789451693,-500.0,0.00021873,3]
[348804263,1736789451702,-910.52,0.00021873,3]
[348804265,1736789451711,-815.7,0.00021873,3]
[348804267,1736789451721,-500.0,0.00021873,3]
[348804269,1736789451730,-500.0,0.00021873,3]
[348804271,1736789451740,-500.0,0.00021873,3]
[348804272,1736789451749,-500.0,0.00021873,3]
[348804275,1736789451758,-500.0,0.00021874,3]
[348804277,1736789451769,-500.0,0.00021874,3]
[348804279,1736789451778,-500.0,0.00021874,3]
[348804281,1736789451787,-500.0,0.00021874,2]
[348804283,1736789451796,-10426.58,0.00021874,3]
[348804285,1736789451806,-500.0,0.00021874,3]
[348804287,1736789451815,-500.0,0.00021874,3]
[348804289,1736789451824,-500.0,0.00021875,3]
[348804291,1736789451833,-500.0,0.00021875,3]
[348804293,1736789451843,-1945.6,0.00021876,3]
[348804295,1736789451852,-1221.43,0.00021876,3]
[348804297,1736789451861,-500.0,0.00021876,3]
[348804299,1736789451870,-500.0,0.00021876,3]
[348804301,1736789451879,-500.0,0.00021876,3]
[348804303,1736789451888,-3069.63,0.00021877,3]
[348804305,1736789451897,-3069.63,0.00021877,3]
[348804306,1736789451906,-3069.63,0.00021877,3]
[348804308,1736789451915,-3069.63,0.00021877,3]
[348804310,1736789451925,-3069.67766757,0.00021877,3]
[348804312,1736789451934,-4740.34,0.00021878,3]
[348804314,1736789451943,-500.0,0.00021878,3]
[348804316,1736789451953,-500.0,0.00021878,3]
[348804318,1736789451963,-3331.7,0.00021879,3]
[348804320,1736789451973,-500.0,0.00021879,3]
[348804322,1736789451982,-500.0,0.00021917,3]
[348804324,1736789451992,-1000.0,0.00021917,2]
[348804326,1736789452001,-1000.0,0.00021917,2]
[348804328,1736789452010,-500.0,0.00021917,3]
[348804330,1736789452019,-500.0,0.00021917,3]
[348804332,1736789452028,-306.23600054,0.00021917,3]
[348804334,1736789452037,-166.52,0.0002192,2]
[348804336,1736789452046,-166.52,0.0002192,2]
[348804338,1736789452055,-166.52,0.0002192,2]
[348804340,1736789452064,-166.52,0.0002192,2]
[348804342,1736789452074,-166.52,0.0002192,2]
[348804344,1736789452083,-166.52,0.0002192,2]
[348804346,1736789452093,-166.52,0.0002192,2]
[348804348,1736789452102,-23530.35435228,0.00022,2]
[348804350,1736789452111,-162.0,0.00022,2]
[348804352,1736789452121,-165.0,0.00022,2]
[348804354,1736789452131,-150.0,0.00022,2]
[348804356,1736789452142,-100035.68608952,0.00022,2]
[348804358,1736789452151,-14020.66202246,0.00022,2]
[348804360,1736789452161,-799.89905456,0.00022,5]
[348804362,1736789452171,-420.0,0.0002202,2]
[348804364,1736789452180,-774.33349525,0.00022062,2]
[348804366,1736789452189,-174.342135,0.00022115,2]
[348804368,1736789452199,-878.97,0.00022146,3]
[348804370,1736789452210,-500.0,0.00022146,3]
[348804372,1736789452219,-500.0,0.00022146,3]
[348804375,1736789452233,-237.9,0.00022147,3]
[348804377,1736789452243,-500.0,0.00022147,3]
[348804379,1736789452253,-500.0,0.00022147,3]
[348804381,1736789452263,-879.84,0.00022147,3]
[348804383,1736789452272,-500.0,0.00022147,3]
[348804384,1736789452282,-637.2,0.00022147,3]
[348804387,1736789452292,-13394.9,0.00022147,2]
[348804389,1736789452303,-569.86,0.00022147,3]
[348804391,1736789452313,-500.0,0.00022147,3]
[348804393,1736789452323,-1568.59,0.00022147,3]
[348804395,1736789452332,-500.0,0.00022147,3]
[348804397,1736789452342,-500.0,0.00022147,3]
[348804399,1736789452351,-296.81558197,0.00022147,3]
[348804401,1736789452360,-910.52,0.00022147,3]
[348804403,1736789452370,-815.7,0.00022147,3]
[348804404,1736789452379,-500.0,0.00022147,3]
[348804407,1736789452389,-575.43,0.00022147,3]
[348804409,1736789452398,-500.0,0.00022147,3]
[348804411,1736789452408,-500.0,0.00022147,3]
[348804413,1736789452417,-500.0,0.00022148,3]
[348804415,1736789452428,-500.0,0.00022148,2]
[348804417,1736789452438,-10426.58,0.00022148,3]
[348804419,1736789452447,-500.0,0.00022148,3]
[348804421,1736789452456,-238.20747252,0.00022148,3]
[348804423,1736789452465,-500.0,0.00022149,3]
[348804425,1736789452475,-500.0,0.00022149,3]
[348804427,1736789452484,-1945.6,0.0002215,3]